Cogmind - Beta 10.2 @@@ ROGUE MODE // 2021.12.10 @ 01:04:35 // Winter2019/RPGLIKE Player: FontPeg Result: Destroyed by G-47 Trooper with Particle Gun Performance ------------- Evolutions (2) 1000 Regions Visited (4) 800 Robots Destroyed (13) 65 Value Destroyed (458) 458 Prototype IDs (0) 0 Alien Tech Used (0) 0 Bonus (0) 0 TOTAL SCORE: 2323 Bonus ------- None Cogmind --------- Core Integrity 0/900 Matter 275/300 Energy 97/100 System Corruption 3% Temperature Cool (18) Movement Core (50) Location -8/Materials Parts ------- > --- POWER (1) -------- (None) > --- PROPULSION (2) --- (None) > --- UTILITY (2) ------ Advanced Sensor Array Advanced Targeting Computer > --- WEAPON (2) ------- Scythe Scythe > --- INVENTORY (2) ---- Nuclear Core Light Assault Rifle Peak State ------------ > --- POWER ------------ Ion Engine > --- PROPULSION ------- (None) > --- UTILITY ---------- Advanced Sensor Array Advanced Targeting Computer > --- WEAPON ----------- Scythe Scythe > --- INVENTORY -------- Nuclear Core Light Assault Rifle [Rating: 13] Favorites ----------- Power Ion Engine Engine Ion Engine Propulsion Hover Unit Hover Unit Hover Unit Utility Sensor Array Device Sensor Array Processor Advanced Targeting Computer Weapon Medium Laser Energy Gun Medium Laser Ballistic Gun Light Assault Rifle Launcher Shock Bomb Launcher Slashing Weapon Scythe Build | -11 -10 -9 -9 -8 ------- Run | Scr Mat Mat Min Mat Slots Evolved 3 | 3 . . . . Power . | . . . . . Propulsion 1 | 1 . . . . Utility 1 | 1 . . . . Weapon 1 | 1 . . . . Parts Attached 16 | 3 1 3 3 6 Power 1 | 1 . . . . Engine 1 | 1 . . . . Core . | . . . . . Reactor . | . . . . . Propulsion 2 | . 1 1 . . Treads . | . . . . . Leg . | . . . . . Wheel . | . . . . . Hover 2 | . 1 1 . . Flight . | . . . . . Utility 4 | . . 2 . 2 Device 3 | . . 2 . 1 Storage . | . . . . . Processor 1 | . . . . 1 Hackware . | . . . . . Protection . | . . . . . Artifact . | . . . . . Weapon 9 | 2 . . 3 4 Energy Gun 3 | 1 . . 2 . Energy Cannon . | . . . . . Ballistic Gun 3 | 1 . . 1 1 Ballistic Cannon . | . . . . . Launcher 1 | . . . . 1 Special Weapon . | . . . . . Impact Weapon . | . . . . . Slashing Weapon 2 | . . . . 2 Piercing Weapon . | . . . . . Special Melee Weapon . | . . . . . Unidentified Prototypes . | . . . . . Parts Lost 6 | . . . . 6 Power 1 | . . . . 1 Propulsion 2 | . . . . 2 Utility 1 | . . . . 1 Weapon 2 | . . . . 2 Highest Loss Streak 4 | . . . . 4 Average Slot Usage (%) 69 | . 55 68 84 60 Engine 14 | . 14 14 14 14 Hover 17 | . 12 19 28 7 Device 8 | . . 5 14 9 Processor 1 | . . . . 6 Energy Gun 14 | . 14 14 19 8 Ballistic Gun 10 | . 14 14 7 7 Slashing Weapon 1 | . . . . 5 Naked Turns . | . . . . . Heaviest Build 13 | 8 8 9 11 13 Greatest Support 8 | 8 8 8 8 8 Greatest Overweight (x) 1 | . . 1 1 1 Average Overweight (x) . | . . . . . Largest Inventory Capacity 2 | 1 1 2 2 2 Average Capacity 1 | 1 1 1 2 2 Most Carried 2 | 1 1 2 2 2 Average Carried 1 | . 1 1 1 1 Final Capacity 2 | 1 1 2 2 2 Final Carried 2 | 1 1 2 1 2 Class Distribution -------------------- 100% | Mutant Dominant Class ---------------- Mutant | -10/Materials Mutant | -9/Materials Mutant | -9/Mines Mutant | -8/Materials Resources | -11 -10 -9 -9 -8 ----------- Run | Scr Mat Mat Min Mat Matter Collected 387 | 230 14 47 26 70 Remotely . | . . . . . Salvage Created 721 | . 70 231 26 394 Parts 23 | . 2 9 . 12 Haulers Intercepted . | . . . . . Recyclers Shooed 2 | . . 1 . 1 Parts Field Recycled . | . . . . . Retrieved Matter . | . . . . . Parts Self-Destructed . | . . . . . Prevented . | . . . . . Kills | -11 -10 -9 -9 -8 ------- Run | Scr Mat Mat Min Mat Combat Hostiles Destroyed 11 | . 2 3 1 5 Guns 10 | . 2 3 1 4 AOE 1 | . . . . 1 Classes Destroyed 6 | . 1 2 1 2 Worker 1 | . . . . 1 Mechanic 1 | . . . . 1 Watcher 1 | . . 1 . . Grunt 7 | . 2 2 . 3 Sentry 3 | . . 1 . 2 Assembled 1 | . . . 1 . Best Kill Streak 2 | . 1 1 1 2 Combat Bots Only 2 | . 1 1 1 2 Max Kills in Single Turn 1 | . 1 1 1 1 Gunslinging . | . . . . . Exploded 1 | . . . . 1 Melee . | . . . . . Uniques/NPCs Destroyed . | . . . . . Combat | -11 -10 -9 -9 -8 -------- Run | Scr Mat Mat Min Mat Damage Taken 1302 | . 73 401 41 787 Core 1063 | . 59 327 32 645 Absorbed by Shields . | . . . . . Redirected to Core 797 | . 49 247 32 469 Core Remaining (%) 85 | 100 100 . 55 . Volleys Fired 72 | . 7 14 11 40 Largest 2 | . 2 2 2 2 Hottest 115 | . 70 70 115 115 Shots Fired 112 | . 14 28 17 53 Gun 108 | . 14 28 17 49 Cannon . | . . . . . Launcher 4 | . . . . 4 Special . | . . . . . Kinetic 57 | . 7 14 7 29 Thermal 51 | . 7 14 10 20 Explosive . | . . . . . Electromagnetic 4 | . . . . 4 Robot Hit Streak 16 | . 6 8 5 16 Robot Miss Streak 3 | . 3 1 1 2 Penetration Max . | . . . . . Secondary Targets . | . . . . . Shots Hit Robots 78 | . 9 20 5 44 Core Hits 36 | . 4 10 3 19 Critical Hits 2 | . 1 . . 1 Critical Kills 1 | . . . . 1 Critical Parts Destroyed 1 | . 1 . . . Melee Attacks 1 | . . . . 1 Impact . | . . . . . Slashing 1 | . . . . 1 Piercing . | . . . . . Sneak Attacks . | . . . . . Combat Hostiles . | . . . . . Follow-up Attacks . | . . . . . Damage Inflicted 921 | . 97 209 47 568 Guns 770 | . 97 209 47 417 Cannons . | . . . . . Explosions 95 | . . . . 95 Melee 38 | . . . . 38 Ramming 18 | . . . . 18 Kinetic 355 | . 23 73 47 212 Thermal 415 | . 74 136 . 205 Explosive . | . . . . . Electromagnetic 95 | . . . . 95 Impact . | . . . . . Slashing 38 | . . . . 38 Piercing . | . . . . . Highest Corruption 3 | . . . . 3 Average Corruption 3 | . . . . 3 Corruption Purged . | . . . . . Overload Shots . | . . . . . Overflow Damage . | . . . . . Projectiles . | . . . . . Explosions . | . . . . . Melee . | . . . . . Knockbacks . | . . . . . Impact . | . . . . . Kinetic . | . . . . . Secondary . | . . . . . Self-Inflicted Damage 9 | . . . . 9 Shots . | . . . . . Rammed 1 | . . . . 1 Targets Rammed 1 | . . . . 1 Kicked . | . . . . . Crushed . | . . . . . Highest Temperature 564 | . 104 193 216 564 Average Temperature 167 | . 48 80 81 270 Received Heat Transfer 707 | . 42 171 80 414 Effects 17 | . . . . 17 Shutdowns 2 | . . . . 2 Energy Bleed 4 | . . . . 4 Interference 3 | . . . . 3 Short Circuit 1 | . . . . 1 Damage (minor) 2 | . . . . 2 Damage (major) 5 | . . . . 5 Siege Activations . | . . . . . Robots Corrupted . | . . . . . Combat Hostiles . | . . . . . Parts Fried 1 | . . . . 1 Impact Corruptions . | . . . . . Robots Melted . | . . . . . Combat Hostiles . | . . . . . Parts Melted 3 | . . 1 . 2 Heat Transferred 1184 | . 222 407 . 555 Parts Sabotaged . | . . . . . Parts Stolen . | . . . . . Parts Stripped . | . . . . . Power Chain Reactions . | . . . . . Missiles Intercepted . | . . . . . Alert | -11 -10 -9 -9 -8 ------- Run | Scr Mat Mat Min Mat Peak Influence 144 | . 34 132 51 144 Initial 51 | . . 12 51 19 Average 58 | . 7 66 51 88 Maximum Alert Level . | . . . . . Low Security (%) 100 | 100 100 100 100 100 Level 1 . | . . . . . Level 2 . | . . . . . Level 3 . | . . . . . Level 4 . | . . . . . Level 5 . | . . . . . High Security . | . . . . . Max Security . | . . . . . Squads Dispatched 3 | . 1 1 . 1 Investigation 2 | . 1 . . 1 Extermination . | . . . . . Reinforcement 1 | . . 1 . . Assault . | . . . . . Garrison . | . . . . . Intercept . | . . . . . Construction Impeded . | . . . . . Haulers Reinforced . | . . . . . Stealth | -11 -10 -9 -9 -8 --------- Run | Scr Mat Mat Min Mat Distress Signals . | . . . . . Communications Jammed . | . . . . . Distress Signals . | . . . . . Times Spotted 22 | . 4 9 1 8 Peak Tracking Total 6 | . 1 3 2 6 Tactical Retreats 2 | . . 1 1 . Traps | -11 -10 -9 -9 -8 ------- Run | Scr Mat Mat Min Mat Traps Triggered 1 | . . . . 1 Indirectly . | . . . . . Trap Hack Attempts . | . . . . . Triggered . | . . . . . Disarmed . | . . . . . Reprogrammed . | . . . . . Reused . | . . . . . Traps Extracted . | . . . . . Installed . | . . . . . Triggered . | . . . . . Machines | -11 -10 -9 -9 -8 ---------- Run | Scr Mat Mat Min Mat Machines Disabled . | . . . . . Max in Single Turn . | . . . . . Machines Sabotaged . | . . . . . Garrisons Compromised . | . . . . . Overloaded Fab Kills . | . . . . . Fab Network Shutdowns . | . . . . . Hacking | -11 -10 -9 -9 -8 --------- Run | Scr Mat Mat Min Mat Machines Accessed 5 | . 2 3 . . Terminals 5 | . 2 3 . . Fabricators . | . . . . . Repair Stations . | . . . . . Recycling Units . | . . . . . Scanalyzers . | . . . . . Garrison Access . | . . . . . Total Hacks 16 | . 6 10 . . Successful 9 | . 3 6 . . Failed 7 | . 3 4 . . Catastrophic 2 | . 2 . . . Database Lockouts . | . . . . . Manual 11 | . 5 6 . . Terminals 16 | . 6 10 . . Fabricators . | . . . . . Repair Stations . | . . . . . Recycling Units . | . . . . . Scanalyzers . | . . . . . Garrison Access . | . . . . . Terminal Hacks 8 | . 2 6 . . Branch Access Points 1 | . . 1 . . Emergency Access Points 1 | . . 1 . . Terminal Index 1 | . . 1 . . Alert Level 1 | . 1 . . . Unreport Threat 2 | . 1 1 . . Reprogram Traps 1 | . . 1 . . Registered Components 1 | . . 1 . . Fabricator Hacks . | . . . . . Repair Station Hacks . | . . . . . Recycling Unit Hacks . | . . . . . Scanalyzer . | . . . . . Garrison Access Hacks . | . . . . . Unauthorized Hacks 1 | . 1 . . . Terminals 1 | . 1 . . . Assimilate 1 | . 1 . . . Fabricators . | . . . . . Repair Stations . | . . . . . Recycling Units . | . . . . . Scanalyzers . | . . . . . Garrison Access . | . . . . . Data Cores Recovered . | . . . . . Used . | . . . . . Hacking Detections 5 | . 2 3 . . Full Trace Events 1 | . 1 . . . Feedback Events . | . . . . . Feedback Blocked . | . . . . . Robot Schematics Acquired . | . . . . . Robots Built . | . . . . . Matter . | . . . . . Time . | . . . . . Total Robot Build Rating . | . . . . . Part Schematics Acquired . | . . . . . Parts Built . | . . . . . Matter . | . . . . . Time . | . . . . . Total Part Build Rating . | . . . . . Parts Repaired . | . . . . . Time . | . . . . . Parts Recycled . | . . . . . Recycled Matter . | . . . . . Retrieved Matter . | . . . . . Retrieved Components . | . . . . . Parts Scanalyzed . | . . . . . Part Schematics Acquired . | . . . . . Parts Damaged . | . . . . . Bothacking | -11 -10 -9 -9 -8 ------------ Run | Scr Mat Mat Min Mat Used RIF Installer . | . . . . . Robots Hacked . | . . . . . Non-combat . | . . . . . Combat . | . . . . . Robot Hacks Applied . | . . . . . Relay Couplers Released . | . . . . . Robots Rewired . | . . . . . Allies Hacked . | . . . . . Hacks Repelled . | . . . . . Allies | -11 -10 -9 -9 -8 -------- Run | Scr Mat Mat Min Mat Total Allies 1 | . 1 . . . Largest Group 1 | . 1 1 1 1 Highest-Rated Group 10 | . 10 10 10 10 Highest-Rated Ally 10 | . 10 10 10 10 Total Orders 2 | . 2 . . . STAY 1 | . 1 . . . FOLLOW 1 | . 1 . . . Ally Attacks . | . . . . . Total Damage . | . . . . . Kills . | . . . . . Allies Corrupted . | . . . . . Allies Melted . | . . . . . Intel | -11 -10 -9 -9 -8 ------- Run | Scr Mat Mat Min Mat Robot Analysis Total . | . . . . . Derelict Logs Recovered . | . . . . . Drone Launches . | . . . . . Drone Recoveries . | . . . . . Exploration | -11 -10 -9 -9 -8 ------------- Run | Scr Mat Mat Min Mat Turns Passed 1007 | 20 136 238 318 295 Spaces Moved 856 | 30 185 256 166 219 Core 856 | 30 185 256 166 219 Treads . | . . . . . Legs . | . . . . . Wheels . | . . . . . Hover . | . . . . . Flight . | . . . . . Fastest Speed 50 | 50 50 50 50 50 Average Speed 72 | 50 50 67 97 81 Slowest Speed 100 | 50 50 100 100 100 Overloaded Moves . | . . . . . Propulsion Burnouts . | . . . . . Robots Hopped . | . . . . . Cave-ins Triggered . | . . . . . Exploration Rate (%) 28 | 4 29 29 54 25 Regions Visited 4 Branch Regions 1 Pre-discovered Areas . | . . . . . Known Exits Taken 1 | . . 1 . . Unknown Exits Taken 3 | 1 1 . 1 . Scrap Searched 1 | . . . 1 . Spaces Dug . | . . . . . Terrain Destroyed . | . . . . . Melee . | . . . . . Projectile . | . . . . . AOE . | . . . . . Terrain Rammed . | . . . . . Walls Destroyed . | . . . . . Machines Disabled . | . . . . . Actions | -11 -10 -9 -9 -8 --------- Run | Scr Mat Mat Min Mat Total 1134 | 33 214 294 306 287 Wait 174 | . 18 20 125 11 Move 852 | 29 184 255 165 219 Hop . | . . . . . Pick Up 6 | 1 . 1 . 4 Fast Attach 9 | 3 1 3 . 2 Attach 4 | . . . 1 3 Detach 1 | . . . 1 . Swap 3 | . . . 2 1 Drop 3 | . . 1 1 1 Fire 72 | . 7 14 11 40 Melee 1 | . . . . 1 Ram 1 | . . . . 1 Kick . | . . . . . Crush . | . . . . . Escape Stasis . | . . . . . Rewire . | . . . . . Trap . | . . . . . Miscellaneous 8 | . 4 . . 4 Route ------- -11/Scrapyard -10/Materials -9/Materials (discovered 3 exits: [*Mat] / *Min x2) -9/Mines -8/Materials (discovered 1 exit: [*Fac]) History --------- Turn | Location | Event 1 | -11/Scrapyard | Upgraded with Propulsion slot (x1) 1 | -11/Scrapyard | Upgraded with Utility slot (x1) 1 | -11/Scrapyard | Upgraded with Weapon slot (x1) 11 | -11/Scrapyard | Discovered new exit (range 15) 21 | -11/Scrapyard | Entered Materials 149 | -10/Materials | Discovered new exit (range 12) 157 | -10/Materials | Entered another Materials area 157 | -9/Materials | Accompanied by 1 ally 159 | -9/Materials | Reached level 2 161 | -9/Materials | Identified exit to Mines 322 | -9/Materials | Build established: Mutant 354 | -9/Materials | Discovered new exit (range 11) 395 | -9/Materials | Entered Mines 395 | -9/Mines | Accompanied by 1 ally 552 | -9/Mines | Discovered new exit (range 7) 557 | -9/Mines | Excavation squad dispatched 557 | -9/Mines | A large section of the Mines collapsed 713 | -9/Mines | Entered Materials 713 | -8/Materials | Accompanied by 1 ally 715 | -8/Materials | Reached level 3 756 | -8/Materials | Core integrity fell below 50% 780 | -8/Materials | Reached level 4 807 | -8/Materials | Core integrity fell below 20% 834 | -8/Materials | Lost 4 parts (2n2w) 994 | -8/Materials | Discovered new exit (range 16) 1008 | -8/Materials | Destroyed by G-47 Trooper with Particle Gun Last Messages --------------- 00890_ Acquired Shock Bomb Launcher. 00894_ Upgraded: Core Integrity (+100) 00894_ Upgraded: KI Resistance % (+10) 00894_ Upgraded: TH Resistance % (+15) 00894_ Upgraded: EX Resistance % (+5) 00902_ Y-45 Defender misfires. 00906_ Heat Sink fried. 00906_ Y-45 Defender destroyed. 00916_ Acquired 45 matter. 00922_ K-01 Serf collects debris. 00944_ Acquired Scythe. 00949_ Dropped Shock Bomb Launcher. 00950_ Acquired Scythe. 00979_ Acquired Adv. Sensor Array. 00994_ EXIT=FOUND 00997_ Triggered Alarm Trap. 00997_ An alarm sounds. 00997_ ALERT: Alarm triggered, dispatching investigation squad. 01005_ Ion Engine destroyed. 01007_ G-47 Trooper Imp. Heat Sink severed. Map ----- +----------------------------------------------------+ | ?????????????????????????????????????????????? | | ?????????????????????????????????????????????? | | ?????????????????????????????????????????????? | | ?????????????????????????????????????????????? | | ?????????????????????????????????????????????? | | ?????????????????????????????????????????????? | | ?????????????????????????????????????????????? | | ?????????????????????????????????????????????? | | ?????????????????????????????????????????????? | | ?????????????????????????????????????????????? | | ? ?????????????????????????????????????????? | | ? ?????????????????????????????????????????? | | ?# ?????????????????????????????????????????? | | ?# ?????????????????????????????????????????? | | ?# ?????????????????????????????????????????? | | ?# ????????????????????????????????????????? | | ?# ????????????????????????????????????????? | | ?# ????????????????????????????????????????? | | ?# ???????????????########?????????????????? | | ?# ???????????????#!![[[[#?????????????????? | | ?# ???????????????#!![[[[#?????????????????? | | ?# ???????????????# #?????????????????? | | ## #######+######## ####??????????????? | | #??????????????? | | ?# g< #??????????????? | | ?# @!g #??????????????? | | #####+####################+####??????????????? | | #[ [ #??????????????? ????????????????? | | # #????????????????" ???????????????? | | + """ #????????????????" ! ??????????????? | | # """"" = #????????????????? #?????????????? | | # """"" #????????????????? "#?????????????? | | # """"" ! #?????????????????? T#?????????????? | | # """ #?????????????????? "#?????????????? | | # =#??????????????????? ??????????????? | | ?##########??????????????????????????????????? | | | | | | | | | | | | | | | | | | | | | | | | | | | | | +----------------------------------------------------+ Best States ------------- Heat Dissipation 25 Energy Generation 10 Energy Capacity 250 Matter Stores 300 Matter Capacity 300 Sight Range 17 Robot Scan Range 16 Terrain Scan Density 10 Resistance: KI 20 Resistance: TH 20 Resistance: EX 10 Evasion (%) 50 Targeting Accuracy 8 Offensive Hacking 10 Defensive Hacking 5 Item Schematics ----------------- None Robot Schematics ------------------ None Fabricated ------------ Nothing Alien Tech Used ----------------- None Achievements -------------- None Challenges ------------ None RPGLIKE | -11 -10 -9 -9 -8 --------- Run | Scr Mat Mat Min Mat Levels Raised 3 | . . 1 . 2 XP Earned 8040 | 3000 320 2070 500 2150 XP Spent 7500 | 2960 . 1250 . 3290 Upgrades 26 | 13 . 5 . 8 Propulsion Slot 1 | 1 . . . . Utility Slot 1 | 1 . . . . Weapon Slot 1 | 1 . . . . Core Integrity 6 | 4 . . . 2 Mass Support 1 | 1 . . . . Inventory Capacity 2 | 1 . 1 . . Sight Range 1 | . . 1 . . Hack Attack % 2 | 2 . . . . Hack Defense % 1 | 1 . . . . KI Resistance % 4 | 1 . 1 . 2 TH Resistance % 4 | . . 1 . 3 EX Resistance % 2 | . . 1 . 1 Protomatter Created 63 | . 31 . . 32 Integrity Restored 169 | . 73 . . 96 Core 155 | . 59 . . 96 Parts 14 | . 14 . . . Protomatter Decayed 129 | . 92 . 37 . Game ------ Seed MachineBlastAutohacker Manual? 0 Play Time 00:14:20 Cumulative 95.6 hours Start 2021.12.10 @ 00:51:07 End 2021.12.10 @ 01:04:35 Sessions 1 Manual Loads 0 Difficulty Rogue Special Mode Winter2019/RPGLIKE Game No. 139 Rogue 139 Adventurer 0 Explorer 0 Win Type - Total 1 Types 1/0/0/0/0/0/0/0/0 Lore% 43 Gallery% 56 Achievement% 44 Wizard Run 0 Options --------- ASCII 0 Keyboard 0 Movement Mouse Keybinds 0 Fullscreen 2 Font 18/X11 Map View 76x50 Tactical HUD 1 Map Filters NONE Filters NONE Steam 1 RUN: 1a74caae-d7ab-4bd3-8527-4214345bd650